Cogmind - Beta 13 @@@ ROGUE MODE // 2024.04.02 @ 12:28:57 Player: Turbo Result: Self-destructed Performance ------------- Evolutions (1) 500 Regions Visited (2) 400 Robots Destroyed (29) 145 Value Destroyed (725) 725 Prototype IDs (0) 0 Alien Tech Used (0) 0 Bonus (0) 0 TOTAL SCORE: 1770 Bonus ------- None Cogmind --------- Core Integrity 255/400 Matter 14/300 Energy 100/100 System Corruption 0% Temperature Cool (0) Movement Walking (120) Location -9/Materials Parts ------- > --- POWER (1) -------- (None) > --- PROPULSION (2) --- Aluminum Leg > --- UTILITY (3) ------ Structural Scanner Visual Processing Unit Signal Interpreter > --- WEAPON (3) ------- (None) > --- INVENTORY (5) ---- Ion Engine Aluminum Leg Aluminum Leg Sensor Array Peak State ------------ > --- POWER ------------ Ion Engine > --- PROPULSION ------- Aluminum Leg Aluminum Leg > --- UTILITY ---------- Structural Scanner Visual Processing Unit Signal Interpreter > --- WEAPON ----------- Grenade Launcher Grenade Launcher > --- INVENTORY -------- Aluminum Leg Aluminum Leg Sensor Array [Rating: 9] Favorites ----------- Power Ion Engine Engine Ion Engine Propulsion Aluminum Leg Leg Aluminum Leg Hover Unit Hover Unit Flight Unit Flight Unit Utility Seismic Detector Device Seismic Detector Storage Small Storage Unit Processor Signal Interpreter Weapon Medium Laser Energy Gun Medium Laser Ballistic Gun Assault Rifle Launcher Grenade Launcher Build | -11 -10 -9 ------- Run | Yrd Mat Mat Slots Evolved 2 | . . 2 Power . | . . . Propulsion . | . . . Utility 1 | . . 1 Weapon 1 | . . 1 Parts Attached 42 | 5 34 3 Power 7 | 1 4 2 Engine 7 | 1 4 2 Core . | . . . Reactor . | . . . Propulsion 14 | 2 12 . Treads . | . . . Leg 8 | 2 6 . Wheel . | . . . Hover 2 | . 2 . Flight 4 | . 4 . Utility 8 | . 7 1 Device 5 | . 5 . Storage 1 | . 1 . Processor 2 | . 1 1 Hackware . | . . . Protection . | . . . Artifact . | . . . Weapon 13 | 2 11 . Energy Gun 8 | 2 6 . Energy Cannon . | . . . Ballistic Gun 2 | . 2 . Ballistic Cannon . | . . . Launcher 3 | . 3 . Special Weapon . | . . . Impact Weapon . | . . . Slashing Weapon . | . . . Piercing Weapon . | . . . Special Melee Weapon . | . . . Unidentified Prototypes . | . . . Parts Lost 10 | . 6 4 Power 2 | . 1 1 Propulsion 2 | . 1 1 Utility 2 | . 2 . Weapon 4 | . 2 2 Highest Loss Streak 3 | . 3 1 To Critical Strikes . | . . . Average Slot Usage (%) 81 | . 83 71 Engine 10 | . 11 9 Leg 16 | . 16 18 Hover 1 | . 1 . Flight 8 | . 9 . Device 15 | . 16 11 Processor 6 | . 3 19 Energy Gun 12 | . 14 . Ballistic Gun 2 | . 2 . Launcher 6 | . 5 12 Naked Turns . | . . . Heaviest Build 14 | 7 14 12 Greatest Support 20 | 20 20 20 Greatest Overweight (x) 2 | . 2 . Average Overweight (x) . | . . . Largest Inventory Capacity 8 | 5 8 5 Average Capacity 5 | 5 5 5 Most Carried 5 | . 5 4 Average Carried 1 | . 1 3 Final Capacity 5 | 5 5 5 Final Carried 4 | . 3 4 Class Distribution -------------------- 73% | Mutant 26% | Scavenger-Mutant Dominant Class ---------------- Mutant | -10/Materials Mutant | -9/Materials Resources | -11 -10 -9 ----------- Run | Yrd Mat Mat Matter Collected 701 | 250 338 113 Remotely . | . . . Salvage Created 744 | 46 637 61 Parts 49 | 4 40 5 Haulers Intercepted . | . . . Recyclers Shooed 1 | . 1 . Parts Field Recycled . | . . . Retrieved Matter . | . . . Parts Self-Destructed . | . . . Prevented . | . . . Kills | -11 -10 -9 ------- Run | Yrd Mat Mat Combat Hostiles Destroyed 20 | 1 17 2 Guns 11 | 1 10 . AOE 8 | . 6 2 Classes Destroyed 8 | 1 5 2 Worker 2 | . 1 1 Builder 2 | . 2 . Recycler 2 | . 2 . Operator 1 | . . 1 Watcher 2 | . 1 1 Swarmer 3 | . 3 . Grunt 15 | 1 14 . Sentry 2 | . . 2 Best Kill Streak 10 | 1 10 3 Combat Bots Only 5 | 1 5 1 Max Kills in Single Turn 4 | 1 4 2 Gunslinging . | . . . Exploded 2 | . 2 1 Melee . | . . . Uniques/NPCs Destroyed . | . . . Combat | -11 -10 -9 -------- Run | Yrd Mat Mat Hostile Shots Fired 171 | 1 128 42 Missed 60 | . 44 16 Damage Taken 1454 | 10 977 467 Core 351 | . 206 145 Absorbed by Shields . | . . . Core Remaining (%) 58 | 100 17 . Volleys Fired 113 | 1 97 15 Largest 2 | 2 2 2 Hottest 100 | 80 100 60 Shots Fired 164 | 2 143 19 Gun 131 | 2 129 . Cannon . | . . . Launcher 33 | . 14 19 Special . | . . . Kinetic 29 | . 29 . Thermal 98 | . 98 . Explosive 33 | . 14 19 Electromagnetic 4 | 2 2 . Robot Hit Streak 13 | 1 13 7 Robot Miss Streak 7 | 1 7 1 Penetration Max . | . . . Secondary Targets 1 | . 1 . Max Gunslinging Chain 1 | . 1 . Shots Hit Robots 91 | 1 76 14 Core Hits 59 | 1 44 14 Critical Kills . | . . . Critical Parts Destroyed . | . . . Critical Strikes . | . . . Melee Attacks . | . . . Impact . | . . . Slashing . | . . . Piercing . | . . . Sneak Attacks . | . . . Combat Hostiles . | . . . Follow-up Attacks . | . . . Damage Inflicted 2096 | 15 1619 462 Guns 937 | 15 922 . Cannons . | . . . Explosions 1159 | . 697 462 Melee . | . . . Ramming . | . . . Kinetic 144 | . 144 . Thermal 750 | . 750 . Explosive 1159 | . 697 462 Electromagnetic 43 | 15 28 . Impact . | . . . Slashing . | . . . Piercing . | . . . Highest Corruption . | . . . Average Corruption . | . . . Corruption Purged . | . . . Corruption Blocked . | . . . Overload Shots . | . . . Overflow Damage 24 | . . 24 Projectiles . | . . . Explosions 24 | . . 24 Melee . | . . . Knockbacks . | . . . Impact . | . . . Kinetic . | . . . Secondary . | . . . Self-Inflicted Damage 127 | . 48 79 Shots 7 | . 3 4 Rammed . | . . . Targets Rammed 1 | . 1 . Kicked 1 | . 1 . Crushed . | . . . Highest Temperature 351 | 18 351 24 Average Temperature 72 | 12 77 5 Received Heat Transfer 603 | 6 453 144 Effects 1 | . 1 . Short Circuit 1 | . 1 . Siege Activations . | . . . Robots Corrupted . | . . . Combat Hostiles . | . . . Parts Fried . | . . . Impact Corruptions . | . . . Robots Melted 1 | . 1 . Combat Hostiles 1 | . 1 . Parts Melted 3 | . 3 . Heat Transferred 2078 | . 2078 . Parts Sabotaged . | . . . Parts Stolen . | . . . Parts Stripped . | . . . Power Chain Reactions . | . . . Alert | -11 -10 -9 ------- Run | Yrd Mat Mat Peak Influence 289 | 20 230 289 Initial 96 | . 13 96 Average 113 | 2 104 203 Maximum Alert Level 1 | . 1 1 Low Security (%) 89 | 100 98 39 Level 1 10 | . 1 60 Level 2 . | . . . Level 3 . | . . . Level 4 . | . . . Level 5 . | . . . High Security . | . . . Max Security . | . . . Squads Dispatched 5 | . 5 . Investigation 3 | . 3 . Extermination . | . . . Reinforcement 2 | . 2 . Assault . | . . . Garrison . | . . . Intercept . | . . . Searches Triggered . | . . . Construction Impeded . | . . . Haulers Reinforced . | . . . Active Scanning Responses . | . . . Cargo Convoy Interrupts . | . . . Stealth | -11 -10 -9 --------- Run | Yrd Mat Mat Distress Signals 3 | . 2 1 Communications Jammed . | . . . Distress Signals . | . . . Times Spotted 49 | 1 42 6 Peak Tracking Total 7 | 1 7 3 Tactical Retreats 4 | . 4 . Traps | -11 -10 -9 ------- Run | Yrd Mat Mat Traps Triggered 1 | . 1 . Indirectly . | . . . Trap Hack Attempts . | . . . Triggered . | . . . Disarmed . | . . . Reprogrammed . | . . . Reused . | . . . Traps Extracted . | . . . Installed . | . . . Triggered . | . . . Machines | -11 -10 -9 ---------- Run | Yrd Mat Mat Machines Disabled 2 | . 1 1 Max in Single Turn 1 | . 1 1 Machines Repaired . | . . . Machines Dismantled . | . . . Machines Sabotaged . | . . . Overloaded Fab Kills . | . . . Hacking | -11 -10 -9 --------- Run | Yrd Mat Mat Machines Accessed 6 | . 5 1 Terminals 6 | . 5 1 Fabricators . | . . . Repair Stations . | . . . Recycling Units . | . . . Scanalyzers . | . . . Garrison Access . | . . . Total Hacks 18 | . 14 4 Successful 10 | . 8 2 Failed 8 | . 6 2 Catastrophic 3 | . 2 1 Database Lockouts . | . . . Manual 1 | . 1 . Terminals 18 | . 14 4 Fabricators . | . . . Repair Stations . | . . . Recycling Units . | . . . Scanalyzers . | . . . Garrison Access . | . . . Terminal Hacks 10 | . 8 2 Record 6 | . 4 2 Emergency Access Points 1 | . 1 . Terminal Index 1 | . 1 . Unreport Threat 1 | . 1 . Recall Investigation 1 | . 1 . Fabricator Hacks . | . . . Repair Station Hacks . | . . . Recycling Unit Hacks . | . . . Scanalyzer . | . . . Garrison Access Hacks . | . . . Unauthorized Hacks . | . . . Terminals . | . . . Fabricators . | . . . Repair Stations . | . . . Recycling Units . | . . . Scanalyzers . | . . . Garrison Access . | . . . Data Cores Recovered . | . . . Used . | . . . Hacking Detections 5 | . 4 1 Full Trace Events 4 | . 3 1 Feedback Events . | . . . Feedback Blocked . | . . . Robot Schematics Acquired . | . . . Robots Built . | . . . Authchips . | . . . Time . | . . . Total Robot Build Rating . | . . . Part Schematics Acquired . | . . . Parts Built . | . . . Authchips . | . . . Time . | . . . Total Part Build Rating . | . . . Parts Repaired . | . . . Time . | . . . Parts Recycled . | . . . Recycled Matter . | . . . Retrieved Matter . | . . . Retrieved Components . | . . . Parts Scanalyzed . | . . . Part Schematics Acquired . | . . . Parts Damaged . | . . . Bothacking | -11 -10 -9 ------------ Run | Yrd Mat Mat Used RIF Installer . | . . . Robots Hacked . | . . . Non-combat . | . . . Combat . | . . . Robot Hacks Applied . | . . . Relay Couplers Released . | . . . Fabnet Peak Effective % . | . . . Robots Rewired . | . . . Allies Hacked . | . . . Hacks Repelled . | . . . Allies | -11 -10 -9 -------- Run | Yrd Mat Mat Total Allies . | . . . Largest Group . | . . . Highest-Rated Group . | . . . Highest-Rated Ally . | . . . Total Orders . | . . . Ally Attacks . | . . . Total Damage . | . . . Kills . | . . . Allies Corrupted . | . . . Allies Melted . | . . . Intel | -11 -10 -9 ------- Run | Yrd Mat Mat Robot Analysis Total . | . . . Derelict Logs Recovered . | . . . Drone Launches . | . . . Drone Recoveries . | . . . Exploration | -11 -10 -9 ------------- Run | Yrd Mat Mat Turns Passed 1492 | 92 1166 234 Spaces Moved 918 | 69 703 146 Core 16 | 16 . . Treads . | . . . Legs 638 | 53 439 146 Wheels . | . . . Hover 43 | . 43 . Flight 221 | . 221 . Fastest Speed 37 | 50 37 120 Average Speed 112 | 103 111 120 Slowest Speed 200 | 120 200 120 Overloaded Moves . | . . . Propulsion Burnouts . | . . . Robots Hopped . | . . . Cave-ins Triggered . | . . . Exploration Rate (%) 32 | 6 76 15 Regions Visited 2 Branch Regions . Pre-discovered Areas . | . . . Known Exits Taken 1 | . 1 . Unknown Exits Taken 1 | 1 . . Scrap Searched . | . . . Spaces Dug . | . . . Terrain Destroyed 165 | . 73 92 Melee . | . . . Projectile . | . . . AOE 165 | . 73 92 Terrain Rammed . | . . . Walls Destroyed . | . . . Machines Disabled . | . . . Actions | -11 -10 -9 --------- Run | Yrd Mat Mat Total 1212 | 85 943 184 Wait 101 | 11 70 20 Move 916 | 68 702 146 Hop . | . . . Pick Up 14 | . 14 . Fast Attach 18 | 5 11 2 Attach 15 | . 15 . Detach 3 | . 3 . Swap 9 | . 8 1 Drop 22 | . 22 . Fire 113 | 1 97 15 Melee . | . . . Ram . | . . . Kick 1 | . 1 . Crush . | . . . Escape Stasis . | . . . Rewire . | . . . Trap . | . . . Miscellaneous . | . . . Route ------- -11/Scrapyard -10/Materials (discovered 3 exits: *Mat x2 / [*Min]) -9/Materials History --------- Turn | Location | Event 2 | -11/Scrapyard | Met Revision 17 67 | -11/Scrapyard | Discovered new exit (range 8) 93 | -11/Scrapyard | Entered Materials 245 | -10/Materials | Discovered new exit (range 3) 313 | -10/Materials | Build established: Mutant 467 | -10/Materials | Discovered new exit (range 9) 865 | -10/Materials | Core integrity fell below 50% 1064 | -10/Materials | Lost 3 parts (1p1u1w) 1228 | -10/Materials | Discovered new exit (range 16) 1239 | -10/Materials | Core integrity fell below 20% 1257 | -10/Materials | Identified exit to Materials 1259 | -10/Materials | Entered another Materials area 1259 | -9/Materials | Evolved 2 slots: Utility x1, Weapon x1 1493 | -9/Materials | Self-destructed Last Messages --------------- Destroyed Hover Unit. W-16 Scout destroyed. K-01 Serf collects debris. The unstable cave ceiling collapses. W-16 Scout sends out distress signal. When the line of fire is red, you are attempting to shoot through an object at another target, which incurs significant penalties. Electrolysis Chamber disabled. Aluminum Leg destroyed. K-01 Serf collects debris. The unstable cave ceiling collapses. K-01 Serf collects debris. The unstable cave ceiling collapses. K-01 Serf collects debris. Grenade Launcher destroyed. The unstable cave ceiling collapses. K-01 Serf collects debris. The unstable cave ceiling collapses. K-01 Serf collects debris. Ion Engine destroyed. Map ----- +----------------------------------------------------+ | | | ???################??????????????????????????????? | | ???## ##??????????????????????????????? | | ???## ##??????????????????????????????? | | ???## ##??????????????????????????????? | | ???## ##??????????????????????????????? | | ???## ##??????????????????????????????? | | ###########+#######??????????????????????????????? | | ######### #####??????????????????????????????? | | ## ##?????????????????????????????????? | | ## ##?????????????????????????????????? | | ## ##?????????????????????????????????? | | ######### ####???????????????????????????????? | | ###########+######???????????????????????????????? | | ?????## ##???????????????????????????????? | | ????? # ##???????????????????????????????? | | ????? # """ ##???????????????????????????????? | | ????? # """"" ##???????????????????????????????? | | ????? # """"" ##???????????????????????????????? | | ????? # """"" ##???????????????????????????????? | | ????? # """ ##???????????????????????????????? | | ????? # ##???????????????????????????????? | | ????? #######+####???????????????????????????????? | | ????? # # ####??############?????????????????? | | ????? # """ # #####?############?????????????????? | | ????? # """ # #####?## @ ##?????????????????? | | ????? # """ + ##?##" """ ##?????????????????? | | ????? # # #####" """ ##?????????????????? | | ?????## # #####" """ ##?????????????????? | | ?????## + ####T ###### #??????? | | ?????########## ####" """ #############?? ##?? | | ?????########### ##"Y """ ### ##?? ##?? | | ???????????#### #" """ ###""" ## ## ? | | ???????????#### ### ###""" ## ## | | ???????????## # # ##+######""" ##+ | | ???###?####### # # # #### | | ???## ##### ####""" | | ## | | ???## ##### ## ##? | | ???###?###### ## ## ##???###? | | ???????????## # # ### ######??????? | | ???????????## # # #####??????? | | ???????????## ## ## ##### ##?????????? | | ??????????? ##+######## # ##?????????? | | ???????## # ??? # # ##?????????? | | ??????? # # ??????? # ############?????????? | | ??????? + =# ??????? # ############?????????? | | ??????? # # ??????? + ##???????????????????? | | ??????? # ????????? # ##???????????????????? | | ??????? # #???????" # ##???????????????????? | +----------------------------------------------------+ Best States ------------- Heat Dissipation 35 Energy Generation 10 Energy Capacity 250 Matter Stores 300 Matter Capacity 300 Sight Range 18 Robot Scan Range 14 Terrain Scan Density 10 Evasion (%) 62 Item Schematics ----------------- None Robot Schematics ------------------ None Fabricated ------------ Nothing Alien Tech Used ----------------- None Achievements -------------- None Challenges ------------ None Game ------ Seed PiercingFortressDoublenader Manual? 0 Play Time 00:18:14 Cumulative 2.1 hours Start 2024.04.02 @ 12:12:02 End 2024.04.02 @ 12:28:57 Sessions 1 Manual Loads 0 Difficulty Rogue Special Mode None Game No. 3 Rogue 3 Adventurer 0 Explorer 0 Win Type - Total 0 Types 0/0/0/0/0/0/0/0/0 Lore% 2 Gallery% 7 Achievement% 8 Wizard Run 0 Options --------- Layout 0 ASCII 0 Keyboard 1 Movement Numpad Keybinds 0 Fullscreen 1 Font 18/SmallcapsGlow Map View 76x50 Zoom Use 0% Tactical HUD 0 Map Filters NONE Filters NONE Steam 1 RUN: c2774a59-cdd6-4967-b454-76917191c017